[Event "Qatar Masters 2024"]
[Site "Doha"]
[Date "2024.12.03"]
[Round "1.11"]
[White "Kamalidenova, Meruert"]
[Black "Narayanan S L"]
[Result "0-1"]
[Annotator "TA"]
[ECO "B32"]
[WhiteElo "2378"]
[BlackElo "2647"]
[PlyCount "148"]
[EventDate "2024.11.24"]
[EventType "swiss"]
[EventCountry "QAT"]
[SourceTitle "playchess.com"]
[Source "ChessBase"]
[SourceQuality "1"]
[TimeControl "40/5400+30:1800+30"]

{[%evp 14,148,29,32,53,17,6,4,21,-25,44,-14,-25,-33,-34,-28,-29,-34,-32,-24,-41,-29,-18,-27,0,0,0,0,6,0,0,0,0,-13,-10,-12,-2,-2,-12,-5,-7,-43,-16,-38,-35,-39,-29,-55,-22,-102,-68,-73,-78,-85,-94,-126,-104,-105,-99,-101,-59,-141,-80,-101,-108,-124,-81,-88,-63,-124,-36,-171,0,0,0,0,0,0,0,0,0,0,0,0,0,0,0,0,0,-412,-412,-412,-412,-566,-528,-847,-847,-847,-801,-718,-658,-847,-847,-847,-847,-847,-847,-847,-840,-840,-833,-829,-720,-832,-670,-780,-622,-1214,-1124,-29961,-29962,-29961,-29959,-29966,-29965,-29965,-7255,-29968,-7145,-8325,-6973,-6817,-6753,-29985,-29986,-29992,-29993]} 1. e4 {[%emt 0:00:05]} c5 {[%emt 0:00:06]} 2. Nf3 {[%emt 0:00:05][%cal Bg1f3,Bf3d4,Bd4b5,Bb5a3,Ba3c4][%mdl 32]} Nc6 {[%emt 0:00:06]} 3. d4 {[%emt 0:00:06]} cxd4 {[%emt 0:00:06]} 4. Nxd4 {[%emt 0:00:04]} e5 {[%emt 0:00:26]} 5. Nb5 {[%emt 0:00:06]} d6 {[%emt 0:00:05]} 6. N1c3 {[%emt 0:00:09]} a6 {[%emt 0:00:08]} 7. Na3 {[%emt 0:00:06]} Be7 {[%emt 0:00:07]} 8. Nc4 {[%emt 0:02:45]} Nf6 {[%emt 0:01:00][%cal Of6e4]} 9. Bd3 {[%emt 0:03:03]} Bg4 {[%emt 0:06:01]} 10. f3 {[%emt 0:02:01]} Be6 {[%emt 0:00:10] The position is equal.} 11. Be3 {[%emt 0:02:55]} (11. Ne3 $142) 11... Nd4 {[%emt 0:03:08]} (11... d5 $11 12. exd5 Nxd5 13. Nxd5 Qxd5) 12. Bxd4 {[%emt 0:04:31]} (12. Bf2 $14) 12... exd4 $11 {[%emt 0:00:14]} 13. Ne2 {[%emt 0:00:10]} d5 {[%emt 0:12:05]} 14. exd5 {[%emt 0:04:39]} Nxd5 {[%emt 0:02:54][%cal Bf6d5,Bd5f4,Bf4d3][%mdl 32]} 15. Nxd4 {[%emt 0:21:50]} Bb4+ {[%emt 0:00:53]} 16. Kf1 {[%emt 0:00:41]} b5 {[%emt 0:02:23]} 17. Nxe6 {[%emt 0:02:02]} fxe6 {[%emt 0:00:07]} 18. Qe2 $1 {[%emt 0:00:14]} Nf4 {[%emt 0:03:21]} (18... bxc4 {simplifies} 19. Qxe6+ Ne7 20. Qxc4 Bd6) 19. Qe4 {[%emt 0:01:23]} Nxd3 {[%emt 0:01:21]} 20. Ne3 {[%emt 0:05:27]} (20. cxd3 $2 bxc4 21. Qxe6+ Be7 22. dxc4 Rb8 $19) 20... O-O {[%emt 0:07:40][%cal Od8f6]} 21. Rd1 {[%emt 0:05:37]} Qf6 {[%emt 0:06:51]} 22. Rxd3 {[%emt 0:01:49]} Qxb2 {[%emt 0:01:14]} 23. Qxe6+ {[%emt 0:00:37]} Kh8 {[%emt 0:00:08]} 24. Qb3 $1 {[%emt 0:00:12]} Qa1+ {[%emt 0:00:36]} 25. Rd1 {[%emt 0:00:50]} Qe5 $36 {[%emt 0:00:59][%mdl 2048] Black has good play.} 26. Qxb4 {[%emt 0:13:12]} Qxe3 {[%emt 0:00:33]} 27. Qd4 {[%emt 0:09:16]} Qa3 {[%emt 0:14:19]} 28. Kf2 {[%emt 0:01:49]} Qxa2 {[%emt 0:01:05]} 29. Rd2 {[%emt 0:00:08][%cal Oc2c4]} Qf7 {[%emt 0:17:04]} 30. Ra1 {[%emt 0:01:07]} h6 {[%emt 0:01:00]} 31. c3 {[%emt 0:04:57]} (31. c4 $1 $11) 31... Rfe8 {[%emt 0:07:40]} 32. Raa2 {[%emt 0:03:54]} Qc7 {[%emt 0:00:44][%cal Oa6a5]} 33. Re2 {[%emt 0:01:32]} a5 {[%emt 0:05:18]} (33... Qxh2 $6 34. Rxe8+ Rxe8 35. Rxa6 $11) 34. h4 {[%emt 0:01:50]} a4 {[%emt 0:03:14]} 35. Qd5 {[%emt 0:02:39]} Qb6+ {[%emt 0:01:06]} 36. Kg3 {[%emt 0:00:17]} Red8 {[%emt 0:01:40]} 37. Qf5 {[%emt 0:01:27]} (37. Re6 $15) 37... Rf8 {[%emt 0:01:19]} (37... Qc7+ $142 $1 38. Kg4 Qc4+ (38... Qxc3 39. Qxb5 a3 40. Re4 $15) 39. Kg3 a3 (39... Qxc3 40. Qxb5 a3 41. Re7 $15)) 38. Qd5 {[%emt 0:02:04]} Qc7+ {[%emt 0:00:34]} 39. Kh3 {[%emt 0:00:58]} Rab8 {[%emt 0:00:05]} (39... Qxc3 40. Qxb5 a3 41. Re7 $15) 40. Rab2 {[%emt 0:00:57]} Rfd8 {[%emt 0:00:17]} 41. Qe5 {[%emt 0:30:31]} (41. Qf5 $15) 41... Qd7+ {[%emt 0:30:47]} ({Black should try} 41... Qc6 $17 {Hoping for ...a3.} 42. Ra2 Ra8) 42. Kh2 {[%emt 0:01:03]} (42. Qe6 $15) 42... Re8 $2 {[%emt 0:01:01]} (42... a3 $1 $19 {[%cal Ra3b2]} 43. Rb4 Re8) 43. Rxb5 {[%emt 0:00:00]} Rxe5 {[%emt 0:00:00]} 44. Rxb8+ {[%emt 0:00:00]} Kh7 {[%emt 0:00:00]} 45. Rxe5 {[%emt 0:00:00][%mdl 4096] Endgame. KQ-KRR} Qc7 {[%emt 0:00:00][%csl LRb8,LRc3,LRe5]} 46. Rbb5 {[%emt 0:00:00]} a3 {[%emt 0:00:00]} 47. Rbc5 {[%emt 0:00:00]} Qd6 {[%emt 0:00:00] And now ...a2 would win.} 48. Ra5 {[%emt 0:00:00]} Qc7 {[%emt 0:00:00]} (48... a2 $5 49. f4 $8 Qd2 $11) 49. Rac5 {[%emt 0:00:00]} Qf7 {[%emt 0:00:00] aiming for ...a2.} (49... Qb8 $5 50. Rb5 $8 Qc8 $11) 50. Rf5 {[%emt 0:02:09]} Qe7 {[%emt 0:00:00]} 51. Kh3 {[%emt 0:02:57][%mdl 8192] [#] White is now going downhill.} (51. Ra5 $11) 51... a2 $1 $19 {[%emt 0:00:00]} ({Worse is} 51... Qe1 52. Ra5 $11) 52. Ra5 {[%emt 0:00:03] [#]} Qe6 {[%emt 0:00:00]} 53. g4 {[%emt 0:00:42]} Qe2 {[%emt 0:00:00]} 54. h5 {[%emt 0:00:31]} Qf1+ {[%emt 0:00:00]} 55. Kg3 {[%emt 0:00:48]} a1=Q {[%emt 0:00:00]} 56. Rxa1 {[%emt 0:00:07]} Qxa1 {[%emt 0:00:00] KQ-KR} 57. c4 {[%emt 0:00:04]} Qg1+ {[%emt 0:00:00]} 58. Kh3 {[%emt 0:00:11]} Qf1+ {[%emt 0:00:00]} 59. Kg3 {[%emt 0:00:16]} Qxc4 {[%emt 0:00:00]} 60. Kf2 {[%emt 0:00:53]} Qd3 {[%emt 0:00:00]} 61. Kg3 {[%emt 0:00:42]} Qe3 {[%emt 0:00:00]} 62. Kg2 {[%emt 0:01:31]} Qe1 {[%emt 0:00:00]} 63. Rf8 {[%emt 0:00:22]} Qd2+ {[%emt 0:00:00]} 64. Kf1 {[%emt 0:00:17]} Qh2 {[%emt 0:00:38]} 65. Ke1 {[%emt 0:00:26]} Qg2 {[%emt 0:00:06]} 66. Kd1 {[%emt 0:00:31]} Qf2 {[%emt 0:00:13]} 67. Rf4 {[%emt 0:00:16]} Kg8 {[%emt 0:00:12]} 68. Rf5 {[%emt 0:00:10] [#]} g6 $1 {[%emt 0:00:10]} 69. hxg6 {[%emt 0:00:12]} Kg7 {[%emt 0:00:03][%cal Of2e3] ( -> ...Qe3!)} 70. Kc1 {[%emt 0:00:25]} Kxg6 {[%emt 0:00:07]} (70... Qe2 $142 71. Rf7+ Kxg6 72. Rf5 Qd3 73. f4 Qg3 74. Kd2 Qxg4 75. Re5 Qxf4+ 76. Re3 Kh5 77. Ke2 Kg4 78. Ra3 Qc4+ 79. Rd3 h5 (79... Qxd3+ {is a self mate.} 80. Kxd3 Kf3 81. Kd2 Kf2 82. Kd3 h5 83. Kd4 h4 84. Ke4 h3 85. Ke5 h2 86. Ke6 h1=Q 87. Kd7 Qd5+ 88. Ke7 Kg3 89. Kf6 Qe4 90. Kf7 Kf4 91. Kf8 Kf5 92. Kg8 Kf6 93. Kh8 Kg6 94. Kg8 Qe8#) 80. Kd2 h4 (80... Qxd3+ {gets mated.} 81. Kxd3 Kf3 82. Kc4 h4 83. Kd5 h3 84. Kd4 h2 85. Ke5 h1=Q 86. Ke6 Qd1 87. Kf6 Qd6+ 88. Kg7 Qe7+ 89. Kh8 Kf4 90. Kg8 Kg5 91. Kh8 Kh6 92. Kg8 Qg7#) 81. Ke3 h3 (81... Qxd3+ 82. Kxd3 h3 83. Ke4 h2 84. Ke5 h1=Q 85. Kd6 Qc1 86. Kd5 Kf4 87. Kd6 Ke4 88. Ke6 Qc7 89. Kf6 Qe5+ 90. Kf7 Kf5 91. Kg8 Kf6 92. Kh7 Qc7+ 93. Kh8 Qg7#) 82. Rd4+ Qxd4+ 83. Kxd4 h2 84. Ke5 h1=Q (84... h1=R 85. Kd6 Kf4 86. Kd5 Rh5+ 87. Kd4 Kf3 88. Kd3 Rh4 89. Kd2 Rd4+ 90. Kc3 Ke3 91. Kc2 Rd3 92. Kc1 Rd2 93. Kb1 Rh2 94. Ka1 Kd3 95. Kb1 Kc3 96. Ka1 Kb3 97. Kb1 Rh1#) 85. Kd6 Qc1 86. Kd5 Qc3 87. Kd6 Kf5 88. Kd5 Qb4 89. Kc6 Ke6 90. Kc7 Qb5 91. Kc8 Kd6 92. Kd8 Qd7#) 71. Kb1 {[%emt 0:00:13] [#]} h5 $1 {[%emt 0:00:08]} 72. Rxh5 {[%emt 0:00:09]} Qxf3 {[%emt 0:00:05]} 73. Kb2 {[%emt 0:00:07]} Qxg4 {[%emt 0:00:06]} 74. Rc5 {[%emt 0:00:06]} Qb4+ {[%emt 0:00:04] Weighted Error Value: White=0.44/Black=0.14 (very precise) .  Loses game:     	White=1     	---        Missed win:     	---       	Black=1      Mistake:       	White=6     	Black=3      Inaccurate:     	White=6     	Black=6      OK:         	White=18    	Black=16     Best:        	White=3     	Black=4      Strong:       	White=2     	Black=1} 0-1

[Event "Qatar Masters 2024"]
[Site "Doha"]
[Date "2024.12.03"]
[Round "1.12"]
[White "Nguyen, Ngoc Truong Son"]
[Black "Vaz, Ethan"]
[Result "1/2-1/2"]
[Annotator "TA"]
[ECO "E97"]
[WhiteElo "2646"]
[BlackElo "2370"]
[PlyCount "60"]
[EventDate "2024.11.24"]
[EventType "swiss"]
[EventCountry "QAT"]
[SourceTitle "playchess.com"]
[Source "ChessBase"]
[SourceQuality "1"]
[TimeControl "40/5400+30:1800+30"]

{[%evp 18,60,16,10,16,4,20,12,15,0,0,8,9,0,-4,0,34,0,0,0,0,0,0,-21,0,-15,-12,-10,0,0,0,-24,0,0,0,-19,0,0,0,-14,0,-2,0,0,0]} 1. d4 {[%emt 0:00:15]} Nf6 {[%emt 0:00:13]} 2. c4 {[%emt 0:00:19]} g6 {[%emt 0:00:06]} 3. Nc3 {[%emt 0:03:16]} Bg7 {[%emt 0:00:06]} 4. e4 {[%emt 0:00:36]} d6 {[%emt 0:00:02]} 5. Be2 {[%emt 0:03:00]} O-O {[%emt 0:00:15]} 6. Nf3 {[%emt 0:03:06]} e5 {[%emt 0:00:15]} 7. O-O {[%emt 0:02:26]} Nc6 {[%emt 0:00:47]} 8. dxe5 {[%emt 0:02:16]} Nxe5 {[%emt 0:16:52]} 9. Nxe5 {[%emt 0:06:06]} dxe5 {[%emt 0:00:04]} 10. Be3 {[%emt 0:02:09]} c6 {[%emt 0:06:02]} 11. b4 {[%emt 0:01:39]} Be6 {[%emt 0:04:23]} 12. Qa4 {[%emt 0:05:03]} Qc7 {[%emt 0:16:39]} 13. Rfd1 {[%emt 0:04:47]} (13. Bxa7 $2 b5 (13... b6 $2 14. Bxb6 Qxb6 15. Qb3 $19) 14. cxb5 Rxa7 $19 (14... Qxa7 15. Qxa7 Rxa7 16. bxc6 $11)) 13... Rfe8 {[%emt 0:09:32]} 14. Rac1 {[%emt 0:04:31]} (14. Bxa7 $2 b6 15. h4 Rxa7 $19 (15... Qxa7 $2 16. Qxc6 Qa3 17. Rdc1 $19)) 14... Ng4 {[%emt 0:04:55]} 15. Bc5 {[%emt 0:11:23][%cal Oc5d6]} (15. Bxa7 $2 b6 (15... b5 $2 16. Qa5 $19) 16. h4 (16. Bxg4 $2 Bxg4 17. Re1 Rxa7 $19) 16... Rxa7 $19 (16... Qxa7 $2 17. Qxa7 Rxa7 18. Rd6 $19)) 15... Bh6 {[%emt 0:08:49]} 16. Rb1 {[%emt 0:02:57][%cal Oh2h3]} Red8 {[%emt 0:02:37]} 17. h3 {[%emt 0:04:08]} (17. Bxa7 $2 {is the wrong capture.} Nxf2 18. Kxf2 (18. Rxd8+ Qxd8 $17) 18... Rxd1 19. Rxd1 b6 $17) 17... Nf6 {[%emt 0:01:08]} 18. Rxd8+ {[%emt 0:02:29]} (18. Bxa7 $2 Bd2 19. Qc2 Bxc3 20. Rxd8+ Qxd8 $19) 18... Qxd8 {[%emt 0:00:41]} 19. Rd1 {[%emt 0:08:45] Dodges Qd2} ({Much weaker is} 19. Bxa7 Qd2 20. Be3 Bxe3 21. Qxa8+ Kg7 22. fxe3 Qxc3 $15) 19... Nd7 {[%emt 0:00:33]} 20. Qc2 {[%emt 0:00:15]} Qh4 {[%emt 0:09:21]} 21. Bd6 {[%emt 0:00:33]} Qg5 {[%emt 0:02:53]} 22. Kh1 {[%emt 0:03:26]} (22. Kh2 {looks sharper.} Bf8 23. Na4 Rd8 24. Bc7) 22... Qf6 {[%emt 0:01:11]} 23. Kg1 {[%emt 0:01:12]} Qg5 {[%emt 0:02:38]} 24. Kh1 {[%emt 0:00:11]} Qf4 {[%emt 0:02:55]} 25. Kg1 {[%emt 0:00:22] The position is equal.} Qg5 {[%emt 0:00:38]} 26. Kh1 {[%emt 0:00:05]} Qf6 {[%emt 0:02:14]} 27. Kg1 {[%emt 0:00:20]} Qg5 {[%emt 0:01:39]} 28. Kh1 {[%emt 0:00:06]} Qf4 {[%emt 0:01:34]} 29. Kg1 {[%emt 0:00:05]} Qg5 {[%emt 0:00:14]} 30. Kh1 {[%emt 0:00:03]} Qf4 {[%emt 0:00:05] Not much happened in this game.   Weighted Error Value: White=0.06 (flawless) /Black=0.07 (flawless) .  Inaccurate:     	White=1     	Black=1      OK:         	White=11    	Black=7} 1/2-1/2

[Event "Qatar Masters 2024"]
[Site "Doha"]
[Date "2024.12.03"]
[Round "1.13"]
[White "Nurgaliyev, Sauat"]
[Black "Sargsyan, Shant"]
[Result "0-1"]
[Annotator "TA"]
[ECO "B90"]
[WhiteElo "2382"]
[BlackElo "2655"]
[PlyCount "80"]
[EventDate "2024.11.24"]
[EventType "swiss"]
[EventCountry "QAT"]
[SourceTitle "playchess.com"]
[Source "ChessBase"]
[SourceQuality "1"]
[TimeControl "40/5400+30:1800+30"]

{[%evp 11,80,4,22,18,27,26,21,0,8,0,20,-10,28,24,43,-4,26,14,-15,13,6,2,22,0,27,16,27,0,24,0,16,-7,-4,-15,-8,-4,-16,-9,-12,-5,0,-218,-204,-433,-439,-386,-388,-368,-435,-366,-423,-430,-426,-437,-422,-29948,-12851,-29993,-29994,-29994,-29995,-29995,-29996,-29996,-29994,-29995,-29996,-29996,-29997,-29997,-368]} 1. e4 {[%emt 0:00:05]} c5 {[%emt 0:01:20]} 2. Nf3 {[%emt 0:00:08][%cal Bg1f3,Bf3d4,Bd4b3][%mdl 32]} d6 {[%emt 0:00:10]} 3. d4 {[%emt 0:00:11]} cxd4 {[%emt 0:00:07]} 4. Nxd4 {[%emt 0:00:05]} Nf6 {[%emt 0:00:04]} 5. Nc3 {[%emt 0:00:06]} a6 {[%emt 0:00:03]} 6. Bd3 {[%emt 0:00:06]} g6 {[%emt 0:00:43]} 7. f3 {[%emt 0:00:07]} e5 {[%emt 0:00:34]} 8. Nb3 {[%emt 0:01:03]} Be6 {[%emt 0:00:25]} 9. Be3 {[%emt 0:03:23] The position is equal.} Nbd7 {[%emt 0:00:31][%cal Bb8d7,Bd7b6,Bb6a4][%mdl 32]} 10. Qd2 {[%emt 0:05:18]} b5 {[%emt 0:01:12]} 11. O-O-O {[%emt 0:02:35]} Nb6 {[%emt 0:16:58]} 12. Kb1 {[%emt 0:05:27]} Rb8 {[%emt 0:08:12]} 13. Qf2 {[%emt 0:13:09]} (13. Na5 $14 Qc8 14. Bxb6 Rxb6 15. a3) 13... Na4 {[%emt 0:02:33] [#]} 14. Nd5 {[%emt 0:06:18]} Bxd5 {[%emt 0:03:10]} 15. exd5 {[%emt 0:00:05]} Bg7 {[%emt 0:00:12]} 16. Be4 {[%emt 0:13:17]} h5 {[%emt 0:02:47]} 17. Qd2 {[%emt 0:02:05]} b4 {[%emt 0:02:32]} 18. Qd3 {[%emt 0:04:07]} Rb5 {[%emt 0:03:29]} 19. Bg5 {[%emt 0:04:44]} Qc7 {[%emt 0:01:56]} 20. h4 {[%emt 0:07:01]} Nh7 {[%emt 0:16:09][%cal Bf6h7,Bh7g5,Bg5e4,Be4c3][%mdl 32]} 21. g4 {[%emt 0:06:40] [#] Black must now prevent gxh5.} f5 $1 {[%emt 0:02:56]} 22. gxf5 {[%emt 0:03:28]} (22. gxh5 gxh5) 22... Nxg5 {[%emt 0:02:01]} 23. f6 $132 {[%emt 0:03:09][%mdl 2048] White is not keeping still} Nxe4 {[%emt 0:00:55]} 24. fxg7 {[%emt 0:00:03] [#]} Nec3+ $1 {[%emt 0:00:26]} 25. bxc3 {[%emt 0:00:12]} Qxg7 {[%emt 0:00:14]} 26. cxb4 {[%emt 0:02:30] Black converts the advantage convincingly.} (26. c4 $1 $11 Rb8 27. Rdg1) 26... Rxb4 {[%emt 0:02:28][%cal Oe5e4] ...e4! would now be deadly.} 27. c4 $2 {[%emt 0:14:28]} (27. Rde1 O-O 28. Kc1) 27... O-O $19 {[%emt 0:02:12][%cal Oe5e4]} 28. Rh2 {[%emt 0:03:18] [#]} e4 $1 {[%emt 0:09:08][%mdl 512]} 29. fxe4 {[%emt 0:00:53][%cal Oe4e5]} Nc3+ {[%emt 0:00:15]} 30. Kc2 {[%emt 0:00:06]} Nxd1 {[%emt 0:05:12]} 31. Kxd1 {[%emt 0:00:06]} Qe5 {[%emt 0:00:28]} 32. Rg2 {[%emt 0:00:30]} Kh7 {[%emt 0:00:44]} 33. Rg5 {[%emt 0:01:01] [#]} (33. Qd4 $19 Rf1+ 34. Ke2 Qxd4 (34... Qf4 $2 35. Nd2 $19) 35. Nxd4) 33... Rxb3 $1 {[%emt 0:02:44][%mdl 512]} 34. Qxb3 {[%emt 0:01:10][%mdl 4096] Endgame. KQR-KQR} (34. axb3 Qa1+) 34... Qd4+ {[%emt 0:00:28] Black mates.} 35. Ke1 {[%emt 0:00:32]} Qxe4+ {[%emt 0:00:27]} 36. Kd1 {[%emt 0:00:24]} Rf1+ {[%emt 0:00:09]} 37. Kd2 {[%emt 0:00:01]} Qd4+ {[%emt 0:00:54]} 38. Kc2 {[%emt 0:00:32]} Rf2+ {[%emt 0:00:12]} 39. Kb1 {[%emt 0:00:06]} Qe4+ {[%emt 0:00:10]} 40. Kc1 {[%emt 0:00:07]} Qe1+ {[%emt 0:00:09] Weighted Error Value: White=0.51/Black=0.05 (flawless) .  Loses game:     	White=1     	---        Mistake:       	White=3     	---        Inaccurate:     	White=3     	Black=3      OK:         	White=9     	Black=13     Best:        	White=2     	Black=1      Brilliant:      	---       	Black=3} 0-1

[Event "Qatar Masters 2024"]
[Site "Doha"]
[Date "2024.12.03"]
[Round "1.14"]
[White "Mendonca, Leon Luke"]
[Black "Kiolbasa, Oliwia"]
[Result "1/2-1/2"]
[Annotator "TA"]
[ECO "C78"]
[WhiteElo "2631"]
[BlackElo "2374"]
[PlyCount "141"]
[EventDate "2024.11.24"]
[EventType "swiss"]
[EventCountry "QAT"]
[SourceTitle "playchess.com"]
[Source "ChessBase"]
[SourceQuality "1"]
[TimeControl "40/5400+30:1800+30"]

{[%evp 42,141,0,0,0,-41,-26,-29,0,0,0,0,0,0,0,0,0,0,10,13,18,12,60,6,20,18,59,52,115,113,114,77,75,75,83,8,8,5,6,8,20,14,13,19,50,7,95,91,93,86,100,60,74,74,95,106,103,60,87,88,90,14,14,14,19,19,38,15,15,15,15,14,14,14,14,0,0,0,0,0,0,0,0,0,0,0,0,0,0,0,0,0,0,0,0,0,0,0,0,0,0,0]} 1. e4 {[%emt 0:01:00]} e5 {[%emt 0:00:08]} 2. Nf3 {[%emt 0:00:05]} Nc6 {[%emt 0:00:10]} 3. Bb5 {[%emt 0:00:29]} a6 {[%emt 0:00:19]} 4. Ba4 {[%emt 0:00:06]} Nf6 {[%emt 0:00:18]} 5. O-O {[%emt 0:00:14]} Bc5 {[%emt 0:00:40]} 6. c3 {[%emt 0:03:15]} b5 {[%emt 0:00:26]} 7. Bb3 {[%emt 0:01:38]} d6 {[%emt 0:00:11]} 8. d4 {[%emt 0:00:17]} Bb6 {[%emt 0:00:15]} 9. Be3 {[%emt 0:00:10]} O-O {[%emt 0:03:49]} 10. Nbd2 {[%emt 0:00:21]} h6 {[%emt 0:01:17]} 11. h3 {[%emt 0:00:29]} Re8 {[%emt 0:00:56]} 12. Re1 {[%emt 0:03:41] C78: Ruy Lopez: Archangelsk and Möller Defences.} Rb8 {[%emt 0:02:30] seems to push 12...exd4 aside.} 13. Bc2 {[%emt 0:03:34]} Bb7 {[%emt 0:02:35]} 14. a4 {[%emt 0:06:08]} exd4 {[%emt 0:06:47]} 15. cxd4 {[%emt 0:00:45]} Nb4 {[%emt 0:02:07]} 16. axb5 {[%emt 0:03:58]} axb5 {[%emt 0:05:06]} 17. d5 {[%emt 0:00:47]} c6 {[%emt 0:07:35]} 18. dxc6 {[%emt 0:01:30]} Nxc6 {[%emt 0:08:04]} 19. Ra3 $146 {[%emt 0:25:16]} ({Predecessor:} 19. Bd3 Bxe3 20. Rxe3 Qb6 21. Qb3 Bc8 22. Qa3 b4 23. Qa4 Be6 24. Qa6 Qc5 {½-½ Narayanan,S (2647)-Puranik,A (2568) Yerevan op 3rd 2021 (9)}) 19... d5 {[%emt 0:13:46]} 20. Bxb6 {[%emt 0:17:52]} Qxb6 {[%emt 0:00:09]} 21. e5 {[%emt 0:01:40]} Nd7 {[%emt 0:03:15]} 22. Rae3 {[%emt 0:01:46]} d4 {[%emt 0:05:40]} 23. R3e2 {[%emt 0:04:35]} Nb4 {[%emt 0:04:36]} 24. e6 {[%emt 0:01:21]} Rxe6 {[%emt 0:04:24]} 25. Rxe6 {[%emt 0:00:05]} fxe6 {[%emt 0:00:05]} 26. Bb3 {[%emt 0:00:21]} Nf8 {[%emt 0:04:11]} 27. Ne5 {[%emt 0:02:04]} Rd8 {[%emt 0:03:26]} 28. Qh5 {[%emt 0:03:42]} Qc7 {[%emt 0:01:27]} 29. Qg4 {[%emt 0:03:38]} Bd5 {[%emt 0:07:06]} 30. Qxd4 {[%emt 0:06:45]} Nc2 {[%emt 0:00:24]} 31. Bxc2 {[%emt 0:00:23]} Qxc2 {[%emt 0:00:07]} (31... Bxg2 $11 32. Qh4 Rxd2) 32. Ne4 {[%emt 0:03:22]} (32. Nf1 $1 $14) 32... Ra8 {[%emt 0:01:15]} 33. Nc5 {[%emt 0:00:59]} Ra2 {[%emt 0:04:28]} 34. Ncd3 {[%emt 0:00:47]} Qd2 {[%emt 0:01:46]} (34... Qa4 $1 $14 35. Nb4 Ra1 36. Rxa1 Qxa1+ 37. Kh2 Qa8) 35. Rc1 $16 {[%emt 0:01:32]} Qg5 {[%emt 0:03:06]} 36. Qg4 {[%emt 0:01:35]} (36. Nf4 {seems wilder.} Ra4 37. b4 Bc4 38. g3) 36... Qxg4 {[%emt 0:02:26]} 37. hxg4 {[%emt 0:00:01]} Kh7 {[%emt 0:01:49] [#]} 38. Nf4 {[%emt 0:01:07]} (38. Rc5 $1 $16) 38... Ra4 $1 $11 {[%emt 0:00:37]} (38... Rxb2 $2 {loses.} 39. Rc8 $18) 39. Nxd5 {[%emt 0:02:10]} exd5 {[%emt 0:00:04]} 40. Rc5 {[%emt 0:00:28]} Ng6 {[%emt 0:02:03]} 41. Nxg6 {[%emt 0:05:48]} Kxg6 {[%emt 0:00:23]} 42. Rxb5 {[%emt 0:00:15]} Rd4 {[%emt 0:05:36]} 43. Kh2 {[%emt 0:07:33]} h5 {[%emt 0:08:00]} (43... Rxg4 $11 {remains equal.} 44. Rxd5 Rb4) 44. gxh5+ $16 {[%emt 0:00:42]} Kxh5 {[%emt 0:00:05]} 45. Kg3 {[%emt 0:01:11]} Kg5 {[%emt 0:01:14]} 46. Kf3 {[%emt 0:03:39]} Kf5 {[%emt 0:01:30]} 47. Ke3 {[%emt 0:02:18]} Rd1 {[%emt 0:01:53]} 48. Ke2 {[%emt 0:00:20]} Rd4 {[%emt 0:00:07]} 49. Rb3 {[%emt 0:00:39]} Rc4 {[%emt 0:05:44]} 50. Kd2 {[%emt 0:01:25]} g5 {[%emt 0:00:23]} 51. Re3 {[%emt 0:03:31]} ({White should try} 51. Rf3+ $16 Ke4 52. b3) 51... Rb4 {[%emt 0:04:48]} 52. Kc2 {[%emt 0:02:10]} Rc4+ {[%emt 0:01:33]} 53. Rc3 {[%emt 0:00:41]} Rb4 {[%emt 0:00:05]} 54. b3 {[%emt 0:01:21]} g4 {[%emt 0:00:14]} 55. Rc8 {[%emt 0:01:15]} d4 {[%emt 0:03:45]} 56. g3 {[%emt 0:04:07]} Rb7 {[%emt 0:02:34]} 57. Rf8+ {[%emt 0:00:03]} Ke5 {[%emt 0:00:10]} 58. Rf4 {[%emt 0:00:54]} Rc7+ {[%emt 0:00:47]} 59. Kd2 {[%emt 0:00:01]} Rc3 {[%emt 0:00:50]} 60. Rxg4 {[%emt 0:00:08]} Rxb3 {[%emt 0:00:04]} 61. Rf4 {[%emt 0:00:41]} Rb2+ {[%emt 0:00:46]} 62. Kd3 {[%emt 0:00:01]} Rb3+ {[%emt 0:00:06]} 63. Kc2 {[%emt 0:00:11]} Rc3+ {[%emt 0:00:12]} 64. Kd2 {[%emt 0:00:01]} Ra3 {[%emt 0:00:10]} 65. Rf8 {[%emt 0:00:43]} Ke4 {[%emt 0:00:56]} 66. g4 {[%emt 0:02:15]} Ra2+ {[%emt 0:00:20]} 67. Kc1 {[%emt 0:00:02]} d3 {[%emt 0:00:48]} 68. g5 {[%emt 0:00:08]} Ra1+ {[%emt 0:01:03]} 69. Kd2 {[%emt 0:00:02]} Ra2+ {[%emt 0:00:04]} 70. Kd1 {[%emt 0:01:44]} Ra1+ {[%emt 0:00:05]} 71. Kd2 {[%emt 0:00:03]} 1/2-1/2